[Event "GER-ch Youth-U12 2022"]
[Site "Willingen"]
[Date "2022.06.08"]
[Round "6.24"]
[White "Xu, Wanghan"]
[Black "Li, Luxuan"]
[Result "0-1"]
[ECO "C48"]
[WhiteElo "1419"]
[BlackElo "1235"]
[Annotator "NA RC COMBH"]
[PlyCount "68"]
[EventDate "2022.06.05"]
[EventType "swiss"]
[EventRounds "9"]
[EventCountry "GER"]
[SourceTitle "playchess.com"]
[Source "ChessBase"]
[SourceQuality "1"]
[TimeControl "40/4500+30:900+30"]

1. e4 {[%emt 0:00:00]} e5 {[%emt 0:00:00]} 2. Nf3 {[%emt 0:00:00]} Nc6 {[%emt 0:00:00]} 3. Nc3 {[%emt 0:00:00]} Nf6 {[%emt 0:00:00]} 4. Bb5 {[%emt 0:00:00]} Nd4 {[%emt 0:00:00]} 5. O-O {[%emt 0:00:00]} c6 {[%emt 0:00:00]} 6. Ba4 {[%emt 0:00:00]} Be7 {[%emt 0:00:00]} 7. Nxe5 {[%emt 0:00:00]} d6 {[%emt 0:00:00]} 8. Nf3 {[%emt 0:00:00]} Bg4 {[%emt 0:00:00]} 9. d3 {[%emt 0:00:00]} h6 {[%emt 0:00:00]} 10. Be3 {[%emt 0:00:00]} Nxf3+ {[%emt 0:00:00]} 11. gxf3 {[%emt 0:00:00]} Bh3 {[%emt 0:00:00]} 12. Re1 {[%emt 0:02:13]} Nd7 {[%emt 0:00:00]} 13. Bf4 {[%emt 0:00:00]} Ne5 {[%emt 0:04:51]} 14. d4 {[%emt 0:00:00]} Ng6 {[%emt 0:00:33]} 15. Bg3 {[%emt 0:00:00]} h5 {[%emt 0:01:32]} 16. d5 {[%emt 0:00:00]} b5 {[%emt 0:03:40]} 17. Bb3 {[%emt 0:00:00]} b4 {[%emt 0:01:40]} 18. Ne2 {[%emt 0:00:00]} c5 {[%emt 0:00:49]} 19. Ba4+ {[%emt 0:00:00]} Kf8 {[%emt 0:00:07]} 20. Bc6 {[%emt 0:00:00]} Rc8 {[%emt 0:00:41]} 21. a3 {[%emt 0:00:00]} h4 {[%emt 0:00:56]} 22. Qd2 {[%emt 0:00:00]} hxg3 {[%emt 0:00:42]} 23. fxg3 {[%emt 0:00:00]} Ne5 {[%emt 0:01:15]} 24. axb4 {[%emt 0:00:00]} Nxf3+ {[%emt 0:01:14]} 25. Kf2 {[%emt 0:00:44]} Nxd2 {[%emt 0:00:29]} 26. Nf4 {[%emt 0:01:23]} Bg5 {[%emt 0:01:27]} 27. b5 {[%emt 0:03:14]} Qf6 {[%emt 0:01:14]} 28. Rxa7 {[%emt 0:01:19]} Bxf4 {[%emt 0:00:49]} 29. gxf4 {[%emt 0:00:23]} Qxf4+ {[%emt 0:00:13]} 30. Ke2 {[%emt 0:00:08]} Bg4+ {[%emt 0:04:03]} 31. Kd3 {[%emt 0:00:09]} Rh3+ {[%emt 0:00:38]} 32. Re3 {[%emt 0:00:09]} Rxe3+ {[%emt 0:00:13]} 33. Kxd2 {[%emt 0:00:14]} Qf2+ {[%emt 0:00:11]} 34. Kc1 {[%emt 0:00:09]} Qe1# {[%emt 0:00:21]} 0-1

[Event "GER-ch Youth-U12 2022"]
[Site "Willingen"]
[Date "2022.06.08"]
[Round "6.25"]
[White "Dell, Philip"]
[Black "Limmer, Marco"]
[Result "0-1"]
[ECO "A00"]
[WhiteElo "1457"]
[BlackElo "1825"]
[Annotator "NA RC COMBH"]
[PlyCount "68"]
[EventDate "2022.06.05"]
[EventType "swiss"]
[EventRounds "9"]
[EventCountry "GER"]
[SourceTitle "playchess.com"]
[Source "ChessBase"]
[SourceQuality "1"]
[TimeControl "40/4500+30:900+30"]

1. b4 {[%emt 0:00:00]} e6 {[%emt 0:00:00]} 2. Bb2 {[%emt 0:00:00]} Nf6 {[%emt 0:00:00]} 3. a3 {[%emt 0:00:00]} d5 {[%emt 0:00:00]} 4. Nf3 {[%emt 0:00:00]} Be7 {[%emt 0:00:00]} 5. e3 {[%emt 0:00:00]} a5 {[%emt 0:00:00]} 6. bxa5 {[%emt 0:00:00]} Rxa5 {[%emt 0:00:00]} 7. Be2 {[%emt 0:00:00]} c5 {[%emt 0:00:00]} 8. O-O {[%emt 0:00:00]} O-O {[%emt 0:00:00]} 9. c4 {[%emt 0:00:00]} Nc6 {[%emt 0:00:44]} 10. Nc3 {[%emt 0:00:00]} d4 {[%emt 0:02:05]} 11. Nb5 {[%emt 0:00:00]} d3 {[%emt 0:00:59]} 12. Bxd3 {[%emt 0:01:24]} Qxd3 {[%emt 0:00:13]} 13. Bc3 {[%emt 0:00:37]} Ra8 {[%emt 0:01:23]} 14. Qb3 {[%emt 0:04:09]} Na5 {[%emt 0:01:27]} 15. Qd1 {[%emt 0:01:48]} Nxc4 {[%emt 0:02:03]} 16. a4 {[%emt 0:02:04]} Qd8 {[%emt 0:04:15]} 17. d3 {[%emt 0:01:34]} Nd6 {[%emt 0:00:59]} 18. Nxd6 {[%emt 0:02:39]} Bxd6 {[%emt 0:01:23]} 19. e4 {[%emt 0:01:49]} Bc7 {[%emt 0:01:31]} 20. h3 {[%emt 0:03:58]} Ba5 {[%emt 0:02:52]} 21. Bxa5 {[%emt 0:00:40]} Rxa5 {[%emt 0:00:38]} 22. Qb3 {[%emt 0:01:30]} Qc7 {[%emt 0:02:03]} 23. Rfc1 {[%emt 0:00:50]} Ra6 {[%emt 0:02:02]} 24. Qb5 {[%emt 0:04:14]} Rc6 {[%emt 0:02:50]} 25. Rc4 {[%emt 0:01:30]} Bd7 {[%emt 0:02:51]} 26. a5 {[%emt 0:01:56]} Ra8 {[%emt 0:02:11]} 27. Rc2 {[%emt 0:04:06]} h6 {[%emt 0:03:58]} 28. Rb2 {[%emt 0:01:04]} Ra7 {[%emt 0:01:52]} 29. Rc2 {[%emt 0:02:50]} c4 {[%emt 0:04:01]} 30. e5 {[%emt 0:03:54]} cxd3 {[%emt 0:01:13]} 31. Rxc6 {[%emt 0:00:58]} bxc6 {[%emt 0:00:40]} 32. Qxd3 {[%emt 0:03:30]} Nd5 {[%emt 0:00:53]} 33. Qd2 {[%emt 0:03:55]} c5 {[%emt 0:01:40]} 34. a6 {[%emt 0:02:10]} Bc8 {[%emt 0:01:26]} 0-1

[Event "GER-ch Youth-U12 2022"]
[Site "Willingen"]
[Date "2022.06.08"]
[Round "6.26"]
[White "Draude, Theo"]
[Black "Agirretxe San Sebastian, Jesus M"]
[Result "0-1"]
[ECO "B27"]
[WhiteElo "1397"]
[BlackElo "2117"]
[Annotator "TA"]
[PlyCount "66"]
[EventDate "2022.06.05"]
[EventType "swiss"]
[EventRounds "9"]
[EventCountry "GER"]
[SourceTitle "playchess.com"]
[Source "ChessBase"]
[SourceQuality "1"]
[TimeControl "40/4500+30:900+30"]

{[%evp 9,66,9,10,10,78,71,70,85,138,158,153,56,186,187,185,183,225,135,233,235,362,320,325,152,152,137,140,139,329,320,321,315,327,308,308,327,326,308,384,-455,-460,-525,-528,-516,-507,-875,-862,-779,-814,-968,-949,-29986,-29987,-29987,-29988,-29988,-29989,-29987,-29988]} 1. e4 {[%emt 0:00:00]} c5 {[%emt 0:00:00]} 2. Nf3 {[%emt 0:00:00]} g6 {[%emt 0:00:00]} 3. d4 {[%emt 0:00:00]} cxd4 {[%emt 0:00:00]} 4. Qxd4 {[%emt 0:00:00]} Nf6 {[%emt 0:00:00]} 5. Nc3 {[%emt 0:00:00]} Nc6 {[%emt 0:00:00]} 6. Qa4 {[%emt 0:00:00] B27: Sicilian: 2 Nf3, unusual Black 2nd moves.} Bg7 {[%emt 0:00:00]} (6... d6 $1 $11) 7. e5 $16 {[%emt 0:00:00]} Ng8 {[%emt 0:00:00]} 8. Bf4 {[%emt 0:00:00][%cal Bc1f4,Bf4d2,Bd2g5][%mdl 32] White is slightly better.} Nh6 {[%emt 0:00:00] 8...f6 is vanishing.} (8... f6 $142) 9. h3 {[%emt 0:00:00]} O-O {[%emt 0:00:00]} 10. Bd3 {[%emt 0:00:00]} ({Better is} 10. O-O-O $16) 10... b6 {[%emt 0:00:00]} (10... d6 $1 $14) 11. O-O-O $18 {[%emt 0:00:00]} Bb7 {[%emt 0:00:00] [#]} 12. Rhe1 $146 {[%emt 0:00:00]} ({Predecessor:} 12. Kb1 a6 13. Rhe1 b5 14. Qe4 Kh8 15. Qe3 Ng8 16. h4 Nb4 17. Be2 f6 18. Qd4 Bxf3 19. Bxf3 {1-0 (42) Rodrigues,A-Vieira,A (1747) Sao Paulo 2019}) 12... a6 {[%emt 0:00:00]} 13. Bd2 {[%emt 0:00:00]} e6 {[%emt 0:00:00] [#]} (13... f6 $16) 14. Bg5 $1 {[%emt 0:00:00]} Qc7 {[%emt 0:00:00]} (14... f6 $142 15. exf6 Rxf6) 15. Qf4 {[%emt 0:00:02]} Nf5 {[%emt 0:00:12]} 16. g4 {[%emt 0:00:13]} (16. Bxf5 $18 {and the rest is easy.} f6 17. exf6 Qxf4+ 18. Bxf4 Rxf6 {[#]} 19. Bg4 $1 Rxf4 20. Rxd7) 16... Nfe7 {[%emt 0:00:07][%cal Of7f6]} 17. Bf6 {[%emt 0:00:25]} Bxf6 {[%emt 0:04:28]} 18. Qxf6 {[%emt 0:00:23] aiming for Be4.} Nb4 $2 {[%emt 0:03:52]} (18... Nd5 $16 19. Nxd5 exd5) 19. Qxe7 {[%emt 0:02:37]} Bxf3 {[%emt 0:00:48]} 20. Qxb4 {[%emt 0:01:54]} Bxd1 {[%emt 0:00:10]} 21. Nxd1 {[%emt 0:01:02]} ({Weaker is} 21. Rxd1 Qxe5 22. Qxb6 Rfb8 $16) 21... f6 {[%emt 0:08:24]} 22. f4 {[%emt 0:04:39]} fxe5 {[%emt 0:00:33]} 23. Rxe5 {[%emt 0:00:18]} Rf7 {[%emt 0:04:13]} 24. f5 $4 {[%emt 0:00:54][%mdl 8192]} Qxe5 $19 {[%emt 0:00:08]} 25. fxg6 {[%emt 0:00:15]} hxg6 {[%emt 0:00:26]} 26. Qxb6 {[%emt 0:00:26]} Rb8 {[%emt 0:11:15]} 27. Qxa6 {[%emt 0:01:00]} (27. Qe3 $142 Qxe3+ 28. Nxe3) 27... Qf4+ {[%emt 0:00:35]} 28. Kb1 {[%emt 0:00:23]} Qd2 {[%emt 0:00:22][%cal Rd2d1]} 29. Be2 {[%emt 0:01:15] [#]} Rf1 $3 {[%emt 0:01:52][%mdl 512]} 30. a4 {[%emt 0:00:16]} (30. Qd3 Qxd3) 30... Rxd1+ {[%emt 0:00:04] Black mates.} 31. Bxd1 {[%emt 0:00:09]} Qxd1+ {[%emt 0:00:04]} 32. Ka2 {[%emt 0:00:11]} Qxc2 {[%emt 0:00:25][%csl Gb8][%cal Rc2b2]} 33. Qb5 {[%emt 0:00:50]} Rxb5 {[%emt 0:00:05] Weighted Error Value: White=1.06/Black=0.36} 0-1

[Event "GER-ch Youth-U12 2022"]
[Site "Willingen"]
[Date "2022.06.08"]
[Round "6.27"]
[White "Prashanthakumar, Arju"]
[Black "Haertel, Leon"]
[Result "1-0"]
[ECO "B21"]
[WhiteElo "1265"]
[BlackElo "1536"]
[Annotator "NA RC COMBH"]
[PlyCount "49"]
[EventDate "2022.06.05"]
[EventType "swiss"]
[EventRounds "9"]
[EventCountry "GER"]
[SourceTitle "playchess.com"]
[Source "ChessBase"]
[SourceQuality "1"]
[TimeControl "40/4500+30:900+30"]

1. e4 {[%emt 0:00:00]} c5 {[%emt 0:00:00]} 2. d4 {[%emt 0:00:00]} cxd4 {[%emt 0:00:00]} 3. c3 {[%emt 0:00:00]} dxc3 {[%emt 0:00:00]} 4. Nxc3 {[%emt 0:00:00]} Nc6 {[%emt 0:00:00]} 5. Nf3 {[%emt 0:00:00]} d6 {[%emt 0:00:00]} 6. Bc4 {[%emt 0:00:00]} Bg4 {[%emt 0:00:00]} 7. Bxf7+ {[%emt 0:00:00]} Kxf7 {[%emt 0:00:00]} 8. Ng5+ {[%emt 0:00:00]} Ke8 {[%emt 0:00:00]} 9. Qxg4 {[%emt 0:00:00]} Qd7 {[%emt 0:00:00]} 10. Qxd7+ {[%emt 0:00:00]} Kxd7 {[%emt 0:00:00]} 11. Nf7 {[%emt 0:00:00]} Nf6 {[%emt 0:00:00]} 12. Nxh8 {[%emt 0:00:00]} Ke8 {[%emt 0:00:00]} 13. Be3 {[%emt 0:00:00]} g6 {[%emt 0:00:00]} 14. Ke2 {[%emt 0:00:00]} Bg7 {[%emt 0:00:00]} 15. Nxg6 {[%emt 0:00:00]} hxg6 {[%emt 0:00:00]} 16. Rac1 {[%emt 0:00:00]} a6 {[%emt 0:00:00]} 17. Rhd1 {[%emt 0:00:08]} Kd7 {[%emt 0:00:00]} 18. f4 {[%emt 0:01:45]} Kc7 {[%emt 0:00:00]} 19. Nd5+ {[%emt 0:01:46]} Kd8 {[%emt 0:00:00]} 20. Nxf6 {[%emt 0:01:34]} Bxf6 {[%emt 0:00:00]} 21. e5 {[%emt 0:00:37]} Bg7 {[%emt 0:00:00]} 22. exd6 {[%emt 0:00:37]} Bxb2 {[%emt 0:00:00]} 23. Rb1 {[%emt 0:00:40]} Bg7 {[%emt 0:00:00]} 24. Rxb7 {[%emt 0:01:25]} exd6 {[%emt 0:00:00]} 25. Rxg7 {[%emt 0:00:20]} 1-0

[Event "GER-ch Youth-U12 2022"]
[Site "Willingen"]
[Date "2022.06.09"]
[Round "7.1"]
[White "Stichter, Constantin Paul"]
[Black "Buchinger, Alexis"]
[Result "1/2-1/2"]
[ECO "C54"]
[WhiteElo "1472"]
[BlackElo "1676"]
[Annotator "NA RC COMBH"]
[PlyCount "48"]
[EventDate "2022.06.05"]
[EventType "swiss"]
[EventRounds "9"]
[EventCountry "GER"]
[SourceTitle "playchess.com"]
[Source "ChessBase"]
[SourceQuality "1"]
[TimeControl "40/4500+30:900+30"]

1. e4 {[%emt 0:00:00]} e5 {[%emt 0:00:00]} 2. Nf3 {[%emt 0:00:00]} Nc6 {[%emt 0:00:00]} 3. d4 {[%emt 0:00:00]} exd4 {[%emt 0:00:00]} 4. Bc4 {[%emt 0:00:00]} Bc5 {[%emt 0:00:00]} 5. c3 {[%emt 0:00:00]} Nf6 {[%emt 0:00:00]} 6. e5 {[%emt 0:00:00]} d5 {[%emt 0:00:00]} 7. Bb5 {[%emt 0:00:00]} Ne4 {[%emt 0:00:00]} 8. Nxd4 {[%emt 0:00:00]} O-O {[%emt 0:00:00]} 9. Bxc6 {[%emt 0:00:00]} bxc6 {[%emt 0:00:00]} 10. O-O {[%emt 0:00:00]} Ba6 {[%emt 0:00:00]} 11. Re1 {[%emt 0:00:00]} Qh4 {[%emt 0:00:00]} 12. Be3 {[%emt 0:00:00]} Bxd4 {[%emt 0:04:30]} 13. cxd4 {[%emt 0:00:00]} Qe7 {[%emt 0:02:21]} 14. f3 {[%emt 0:00:00]} Ng5 {[%emt 0:04:04]} 15. Qc1 {[%emt 0:00:00]} Ne6 {[%emt 0:02:54]} 16. Qxc6 {[%emt 0:00:00]} Qb4 {[%emt 0:04:39]} 17. Qc3 {[%emt 0:00:00]} Rab8 {[%emt 0:01:58]} 18. b3 {[%emt 0:03:56]} Rfd8 {[%emt 0:07:15]} 19. Rc1 {[%emt 0:27:48]} Qxc3 {[%emt 0:02:14]} 20. Nxc3 {[%emt 0:01:09]} c5 {[%emt 0:01:27]} 21. Na4 {[%emt 0:03:20]} cxd4 {[%emt 0:08:26]} 22. Bd2 {[%emt 0:00:23]} Rdc8 {[%emt 0:07:43]} 23. Kf2 {[%emt 0:09:17]} Bb5 {[%emt 0:04:00]} 24. Nb2 {[%emt 0:02:00]} Nc5 {[%emt 0:11:57]} 1/2-1/2

[Event "GER-ch Youth-U12 2022"]
[Site "Willingen"]
[Date "2022.06.09"]
[Round "7.2"]
[White "Korchynskyi, Mykola"]
[Black "Gloeckler, Christian"]
[Result "1-0"]
[ECO "E73"]
[WhiteElo "1723"]
[BlackElo "1869"]
[Annotator "NA RC COMBH"]
[PlyCount "171"]
[EventDate "2022.06.05"]
[EventType "swiss"]
[EventRounds "9"]
[EventCountry "GER"]
[SourceTitle "playchess.com"]
[Source "ChessBase"]
[SourceQuality "1"]
[TimeControl "40/4500+30:900+30"]

1. d4 {[%emt 0:00:00]} Nf6 {[%emt 0:00:00]} 2. c4 {[%emt 0:00:00]} g6 {[%emt 0:00:00]} 3. Nc3 {[%emt 0:00:00]} Bg7 {[%emt 0:00:00]} 4. e4 {[%emt 0:00:00]} d6 {[%emt 0:00:00]} 5. Be2 {[%emt 0:00:00]} O-O {[%emt 0:00:00]} 6. Be3 {[%emt 0:00:00]} e5 {[%emt 0:00:00]} 7. d5 {[%emt 0:00:00]} a5 {[%emt 0:00:00]} 8. g4 {[%emt 0:00:00]} Na6 {[%emt 0:00:00]} 9. h4 {[%emt 0:00:00]} Nc5 {[%emt 0:00:00]} 10. Bf3 {[%emt 0:00:00]} Qe7 {[%emt 0:00:00]} 11. g5 {[%emt 0:00:00]} Nfd7 {[%emt 0:00:00]} 12. Be2 {[%emt 0:00:00]} Rd8 {[%emt 0:06:53]} 13. Nh3 {[%emt 0:02:18]} Nf8 {[%emt 0:05:07]} 14. f3 {[%emt 0:02:58]} Bxh3 {[%emt 0:12:24]} 15. Rxh3 {[%emt 0:00:13]} h5 {[%emt 0:00:52]} 16. gxh6 {[%emt 0:01:06]} Bf6 {[%emt 0:02:38]} 17. Bf2 {[%emt 0:00:51]} Nh7 {[%emt 0:05:10]} 18. Qd2 {[%emt 0:02:48]} Qd7 {[%emt 0:02:31]} 19. Rh2 {[%emt 0:02:32]} a4 {[%emt 0:04:32]} 20. O-O-O {[%emt 0:02:08]} Ra6 {[%emt 0:04:34]} 21. Rg1 {[%emt 0:06:11]} Kh8 {[%emt 0:06:23]} 22. Bd1 {[%emt 0:02:30]} b6 {[%emt 0:02:25]} 23. Rf1 {[%emt 0:11:30]} Qe7 {[%emt 0:01:01]} 24. Bxc5 {[%emt 0:09:50]} bxc5 {[%emt 0:00:30]} 25. Bxa4 {[%emt 0:01:24]} Bxh4 {[%emt 0:01:11]} 26. Kb1 {[%emt 0:01:04]} Bg5 {[%emt 0:01:32]} 27. Qc2 {[%emt 0:00:16]} Rda8 {[%emt 0:01:47]} 28. Bc6 {[%emt 0:01:53]} Rb8 {[%emt 0:00:30]} 29. Bb5 {[%emt 0:00:46]} Ra7 {[%emt 0:00:25]} 30. Rg2 {[%emt 0:01:25]} Be3 {[%emt 0:01:05]} 31. Qd3 {[%emt 0:01:30]} Bd4 {[%emt 0:00:20]} 32. Ne2 {[%emt 0:00:21]} Qd8 {[%emt 0:07:24]} 33. Nxd4 {[%emt 0:00:32]} cxd4 {[%emt 0:00:41]} 34. f4 {[%emt 0:01:17]} Qe7 {[%emt 0:01:01]} 35. f5 {[%emt 0:06:32]} g5 {[%emt 0:00:47]} 36. f6 {[%emt 0:00:08]} Qf8 {[%emt 0:01:02]} 37. Qh3 {[%emt 0:03:35]} c6 {[%emt 0:03:26]} 38. Bxc6 {[%emt 0:01:54]} Qd8 {[%emt 0:00:43]} 39. Bb5 {[%emt 0:01:56]} Qa5 {[%emt 0:04:32]} 40. Qb3 {[%emt 0:02:34]} Nxf6 {[%emt 0:02:34]} 41. Re2 {[%emt 0:19:13]} d3 {[%emt 0:17:42]} 42. Re3 {[%emt 0:00:49]} Qd2 {[%emt 0:00:39]} 43. Qxd3 {[%emt 0:02:16]} Qxd3+ {[%emt 0:01:10]} 44. Rxd3 {[%emt 0:00:01]} Nxe4 {[%emt 0:00:28]} 45. Ka1 {[%emt 0:01:14]} Rc7 {[%emt 0:05:19]} 46. a4 {[%emt 0:05:15]} Kh7 {[%emt 0:03:35]} 47. Re3 {[%emt 0:01:07]} f5 {[%emt 0:00:00]} 48. Rxf5 {[%emt 0:00:00]} Kg6 {[%emt 0:00:00]} 49. Rf1 {[%emt 0:00:00]} Nf6 {[%emt 0:00:00]} 50. Ref3 {[%emt 0:00:00]} Rf8 {[%emt 0:00:00]} 51. Be8+ {[%emt 0:00:00]} Rxe8 {[%emt 0:00:00]} 52. Rxf6+ {[%emt 0:00:00]} Kh7 {[%emt 0:00:00]} 53. Rxd6 {[%emt 0:00:00]} e4 {[%emt 0:00:00]} 54. Re6 {[%emt 0:00:00]} Rxe6 {[%emt 0:00:00]} 55. dxe6 {[%emt 0:00:00]} Kxh6 {[%emt 0:00:00]} 56. Re1 {[%emt 0:00:00]} Rxc4 {[%emt 0:00:00]} 57. e7 {[%emt 0:00:00]} Rxa4+ {[%emt 0:00:00]} 58. Kb1 {[%emt 0:00:00]} Ra8 {[%emt 0:00:00]} 59. Rxe4 {[%emt 0:00:00]} Re8 {[%emt 0:00:00]} 60. b4 {[%emt 0:00:00]} Kg6 {[%emt 0:00:00]} 61. b5 {[%emt 0:00:00]} Kf7 {[%emt 0:00:00]} 62. b6 {[%emt 0:00:00]} g4 {[%emt 0:00:00]} 63. Rf4+ {[%emt 0:00:00]} Ke6 {[%emt 0:00:00]} 64. Rxg4 {[%emt 0:00:00]} Kd7 {[%emt 0:00:00]} 65. Rc4 {[%emt 0:00:00]} Rb8 {[%emt 0:00:00]} 66. Rc7+ {[%emt 0:00:00]} Kd6 {[%emt 0:00:00]} 67. Rb7 {[%emt 0:00:00]} Rxb7 {[%emt 0:00:00]} 68. e8=Q {[%emt 0:00:00]} Rxb6+ {[%emt 0:00:00]} 69. Kc2 {[%emt 0:00:00]} Kc7 {[%emt 0:00:00]} 70. Kd3 {[%emt 0:00:00]} Rd6+ {[%emt 0:00:00]} 71. Kc4 {[%emt 0:00:00]} Rc6+ {[%emt 0:00:00]} 72. Kb5 {[%emt 0:00:00]} Rd6 {[%emt 0:00:00]} 73. Kc5 {[%emt 0:00:00]} Rd7 {[%emt 0:00:00]} 74. Qe6 {[%emt 0:00:00]} Kd8 {[%emt 0:00:00]} 75. Qf6+ {[%emt 0:00:00]} Kc7 {[%emt 0:00:00]} 76. Qe5+ {[%emt 0:00:00]} Kb7 {[%emt 0:00:00]} 77. Kb5 {[%emt 0:00:00]} Ka7 {[%emt 0:02:35]} 78. Kc6 {[%emt 0:00:00]} Rb7 {[%emt 0:02:20]} 79. Qc5+ {[%emt 0:00:00]} Ka8 {[%emt 0:00:56]} 80. Qa3+ {[%emt 0:00:00]} Kb8 {[%emt 0:00:11]} 81. Qa5 {[%emt 0:00:00]} Rh7 {[%emt 0:00:38]} 82. Qb4+ {[%emt 0:00:00]} Ka8 {[%emt 0:00:23]} 83. Qa3+ {[%emt 0:00:00]} Kb8 {[%emt 0:00:15]} 84. Qb3+ {[%emt 0:00:00]} Ka7 {[%emt 0:00:13]} 85. Qa2+ {[%emt 0:00:00]} Kb8 {[%emt 0:00:09]} 86. Qg8+ {[%emt 0:00:00]} 1-0

[Event "GER-ch Youth-U12 2022"]
[Site "Willingen"]
[Date "2022.06.09"]
[Round "7.3"]
[White "Nechitailo, Nikita"]
[Black "Dordevic, Tom"]
[Result "1/2-1/2"]
[ECO "D02"]
[WhiteElo "1371"]
[BlackElo "1771"]
[Annotator "NA RC COMBH"]
[PlyCount "126"]
[EventDate "2022.06.05"]
[EventType "swiss"]
[EventRounds "9"]
[EventCountry "GER"]
[SourceTitle "playchess.com"]
[Source "ChessBase"]
[SourceQuality "1"]
[TimeControl "40/4500+30:900+30"]

1. d4 {[%emt 0:00:00]} Nf6 {[%emt 0:00:00]} 2. Bf4 {[%emt 0:00:00]} e6 {[%emt 0:00:00]} 3. e3 {[%emt 0:00:00]} d5 {[%emt 0:00:00]} 4. Nf3 {[%emt 0:00:00]} Bd6 {[%emt 0:00:00]} 5. Ne5 {[%emt 0:00:00]} c5 {[%emt 0:00:00]} 6. c3 {[%emt 0:00:00]} O-O {[%emt 0:00:00]} 7. Bd3 {[%emt 0:00:00]} Qc7 {[%emt 0:00:00]} 8. Nd2 {[%emt 0:00:00]} b6 {[%emt 0:00:00]} 9. g4 {[%emt 0:00:00]} Nbd7 {[%emt 0:04:31]} 10. Ndf3 {[%emt 0:00:00]} Bb7 {[%emt 0:03:11]} 11. h4 {[%emt 0:03:16]} Ne4 {[%emt 0:04:25]} 12. Nxd7 {[%emt 0:04:51]} Qxd7 {[%emt 0:00:12]} 13. Ne5 {[%emt 0:00:09]} Bxe5 {[%emt 0:01:25]} 14. dxe5 {[%emt 0:00:05]} Qc6 {[%emt 0:05:07]} 15. Qb1 {[%emt 0:22:45]} c4 {[%emt 0:25:28]} 16. Bc2 {[%emt 0:00:08]} d4 {[%emt 0:01:07]} 17. Bxe4 {[%emt 0:17:56]} Qxe4 {[%emt 0:00:09]} 18. Qxe4 {[%emt 0:00:03]} Bxe4 {[%emt 0:00:06]} 19. Rg1 {[%emt 0:02:33]} d3 {[%emt 0:01:56]} 20. Rg3 {[%emt 0:01:19]} b5 {[%emt 0:03:20]} 21. f3 {[%emt 0:00:49]} Bc6 {[%emt 0:00:08]} 22. e4 {[%emt 0:04:57]} Rfb8 {[%emt 0:03:55]} 23. Be3 {[%emt 0:00:00]} a5 {[%emt 0:01:41]} 24. Kd2 {[%emt 0:00:00]} b4 {[%emt 0:17:39]} 25. Bd4 {[%emt 0:00:00]} Bb5 {[%emt 0:07:34]} 26. f4 {[%emt 0:03:22]} Bc6 {[%emt 0:01:27]} 27. Re1 {[%emt 0:02:08]} a4 {[%emt 0:01:48]} 28. cxb4 {[%emt 0:06:53]} a3 {[%emt 0:00:25]} 29. b3 {[%emt 0:02:10]} cxb3 {[%emt 0:00:44]} 30. axb3 {[%emt 0:00:38]} Rxb4 {[%emt 0:00:35]} 31. Rxd3 {[%emt 0:00:26]} Rab8 {[%emt 0:01:08]} 32. Ba7 {[%emt 0:01:15]} Ra8 {[%emt 0:00:55]} 33. Bd4 {[%emt 0:03:51]} h6 {[%emt 0:00:32]} 34. Kc2 {[%emt 0:07:54]} Rab8 {[%emt 0:01:08]} 35. Rc3 {[%emt 0:02:51]} Ba8 {[%emt 0:00:38]} 36. Ba7 {[%emt 0:02:29]} Rxe4 {[%emt 0:01:30]} 37. Ra1 {[%emt 0:00:29]} Rd8 {[%emt 0:00:25]} 38. Be3 {[%emt 0:00:16]} Rb4 {[%emt 0:00:37]} 39. Rxa3 {[%emt 0:00:06]} Be4+ {[%emt 0:00:17]} 40. Kc1 {[%emt 0:01:06]} Bf3 {[%emt 0:00:52]} 41. Bd2 {[%emt 0:15:24]} Bxg4 {[%emt 0:00:00]} 42. Rg3 {[%emt 0:00:00]} Rc8+ {[%emt 0:02:06]} 43. Kb2 {[%emt 0:00:00]} Rd4 {[%emt 0:00:18]} 44. Be3 {[%emt 0:00:00]} Rd3 {[%emt 0:00:21]} 45. b4 {[%emt 0:00:00]} Bf5 {[%emt 0:06:53]} 46. Rxd3 {[%emt 0:00:00]} Bxd3 {[%emt 0:00:05]} 47. Bc5 {[%emt 0:00:00]} Bb5 {[%emt 0:01:16]} 48. Kc3 {[%emt 0:00:00]} Rd8 {[%emt 0:00:49]} 49. Be7 {[%emt 0:00:00]} Rc8+ {[%emt 0:00:12]} 50. Kb3 {[%emt 0:00:00]} Rc4 {[%emt 0:00:39]} 51. Bf6 {[%emt 0:00:00]} g6 {[%emt 0:02:41]} 52. Rc3 {[%emt 0:00:00]} Rxc3+ {[%emt 0:00:49]} 53. Kxc3 {[%emt 0:00:00]} Kf8 {[%emt 0:00:23]} 54. Kd4 {[%emt 0:00:00]} Ke8 {[%emt 0:00:20]} 55. Kc5 {[%emt 0:00:00]} Be2 {[%emt 0:00:08]} 56. Kc6 {[%emt 0:00:00]} Bf3+ {[%emt 0:00:21]} 57. Kb6 {[%emt 0:00:00]} Kd7 {[%emt 0:00:30]} 58. Kc5 {[%emt 0:00:00]} Bg2 {[%emt 0:03:36]} 59. b5 {[%emt 0:00:00]} Bf3 {[%emt 0:02:26]} 60. Kb6 {[%emt 0:00:23]} Be2 {[%emt 0:00:37]} 61. Ka5 {[%emt 0:01:30]} Bf3 {[%emt 0:00:27]} 62. Ka6 {[%emt 0:00:20]} Be2 {[%emt 0:00:06]} 63. Kb6 {[%emt 0:00:07]} Bf1 {[%emt 0:00:19]} 1/2-1/2